[Event "FIDE CB Open 2022"]
[Site "Ceske Budejovice"]
[Date "2022.07.06"]
[Round "6.54"]
[White "Pisar, Tomas"]
[Black "Rybacek, Martin"]
[Result "1-0"]
[ECO "E16"]
[WhiteElo "1640"]
[BlackElo "1650"]
[Annotator "NA RC COMBH"]
[PlyCount "44"]
[EventDate "2022.07.01"]
[EventType "swiss"]
[EventCountry "CZE"]
[SourceTitle "playchess.com"]
[Source "ChessBase"]
[SourceQuality "1"]
[TimeControl "40/5400+30:1800+30"]

1. d4 {[%emt 0:00:00]} Nf6 {[%emt 0:06:59]} 2. Nf3 {[%emt 0:00:53]} e6 {[%emt 0:00:30]} 3. c4 {[%emt 0:00:30]} Bb4+ {[%emt 0:00:30]} 4. Bd2 {[%emt 0:00:30]} Bxd2+ {[%emt 0:00:30]} 5. Qxd2 {[%emt 0:00:30]} O-O {[%emt 0:00:30]} 6. g3 {[%emt 0:00:30]} b6 {[%emt 0:00:30]} 7. Bg2 {[%emt 0:00:30]} Bb7 {[%emt 0:00:30]} 8. O-O {[%emt 0:00:30]} d6 {[%emt 0:00:30]} 9. Nc3 {[%emt 0:06:27]} Nbd7 {[%emt 0:00:30]} 10. Rfe1 {[%emt 0:00:30]} c5 {[%emt 0:02:44]} 11. d5 {[%emt 0:00:14]} exd5 {[%emt 0:02:43]} 12. cxd5 {[%emt 0:00:05]} Re8 {[%emt 0:00:51]} 13. e4 {[%emt 0:10:17]} Ng4 {[%emt 0:11:05]} 14. h3 {[%emt 0:14:04]} Nge5 {[%emt 0:01:07]} 15. Nxe5 {[%emt 0:00:05]} Nxe5 {[%emt 0:00:41]} 16. f4 {[%emt 0:01:11]} Ng6 {[%emt 0:01:29]} 17. Re3 {[%emt 0:14:17]} f6 {[%emt 0:03:55]} 18. Rae1 {[%emt 0:04:30]} Qd7 {[%emt 0:03:59]} 19. Kh2 {[%emt 0:01:55]} b5 {[%emt 0:02:58]} 20. Bf3 {[%emt 0:07:11]} b4 {[%emt 0:02:05]} 21. Nd1 {[%emt 0:00:55]} Bc8 {[%emt 0:01:43]} 22. Nf2 {[%emt 0:01:01]} Qc7 {[%emt 0:05:40]} 1-0

[Event "FIDE CB Open 2022"]
[Site "Ceske Budejovice"]
[Date "2022.07.07"]
[Round "7.1"]
[White "Roshka, Yevgeniy"]
[Black "Neuman, Petr"]
[Result "1/2-1/2"]
[ECO "A21"]
[WhiteElo "2497"]
[BlackElo "2378"]
[Annotator "RC"]
[PlyCount "109"]
[EventDate "2022.07.01"]
[EventType "swiss"]
[EventCountry "CZE"]
[SourceTitle "playchess.com"]
[Source "ChessBase"]
[SourceQuality "1"]
[TimeControl "40/5400+30:1800+30"]

1. d4 {[%emt 0:01:11]} d6 {[%emt 0:01:03]} 2. c4 {[%emt 0:02:14]} e5 {[%emt 0:01:19]} 3. Nc3 {[%emt 0:02:03]} exd4 {[%emt 0:00:30]} 4. Qxd4 {[%emt 0:00:02]} Nc6 {[%emt 0:00:08]} 5. Qd2 {[%emt 0:00:10]} Nf6 {[%emt 0:00:34]} 6. b3 {[%emt 0:00:51]} a5 {[%emt 0:01:56]} 7. Bb2 {[%emt 0:00:36]} a4 {[%emt 0:03:28]} 8. Nd5 {[%emt 0:03:20]} Be7 {[%emt 0:02:51]} 9. Rd1 {[%emt 0:11:06]} axb3 {[%emt 0:00:42]} 10. axb3 {[%emt 0:00:02]} O-O {[%emt 0:02:37]} 11. Qc3 {[%emt 0:03:12]} Be6 {[%emt 0:01:20]} 12. Nf3 {[%emt 0:01:58]} Bxd5 {[%emt 0:00:22]} 13. cxd5 {[%emt 0:00:31]} Ne5 {[%emt 0:00:10]} 14. g3 {[%emt 0:09:46]} Nxf3+ {[%emt 0:02:16]} 15. Qxf3 {[%emt 0:00:09]} c6 {[%emt 0:02:44]} 16. dxc6 {[%emt 0:04:08]} bxc6 {[%emt 0:00:34]} 17. Bg2 {[%emt 0:02:13]} d5 {[%emt 0:00:33]} 18. O-O {[%emt 0:00:25]} Qb6 {[%emt 0:03:16]} 19. Bd4 {[%emt 0:03:15]} Qb5 {[%emt 0:00:37]} 20. Qd3 {[%emt 0:00:28]} Rfb8 {[%emt 0:03:27]} 21. Qxb5 {[%emt 0:00:15]} Rxb5 {[%emt 0:00:08]} 22. Rd3 {[%emt 0:00:02]} Ne4 {[%emt 0:02:44]} 23. Rc1 {[%emt 0:01:57]} Ra6 {[%emt 0:06:47]} 24. Bxe4 {[%emt 0:13:21]} dxe4 {[%emt 0:00:13]} 25. Rdc3 {[%emt 0:00:03]} Bf8 {[%emt 0:10:07]} 26. Rxc6 {[%emt 0:02:10]} Rxc6 {[%emt 0:01:16]} 27. Rxc6 {[%emt 0:00:02]} Rxb3 {[%emt 0:00:13]} 28. Rc8 {[%emt 0:00:01]} Rb5 {[%emt 0:00:09]} 29. g4 {[%emt 0:00:02]} h5 {[%emt 0:06:06]} 30. h3 {[%emt 0:00:11]} hxg4 {[%emt 0:03:13]} 31. hxg4 {[%emt 0:00:02]} f6 {[%emt 0:13:01]} 32. Re8 {[%emt 0:01:20]} Kf7 {[%emt 0:00:24]} 33. Rxe4 {[%emt 0:01:11]} Rb4 {[%emt 0:00:05]} 34. Kg2 {[%emt 0:03:13]} Bd6 {[%emt 0:11:36]} 35. Kf3 {[%emt 0:01:01]} g6 {[%emt 0:00:17]} 36. Ke3 {[%emt 0:12:01]} Ra4 {[%emt 0:01:57]} 37. Kd3 {[%emt 0:00:13]} Bc7 {[%emt 0:02:21]} 38. f3 {[%emt 0:04:48]} Bd6 {[%emt 0:01:32]} 39. Kc3 {[%emt 0:02:17]} Bf8 {[%emt 0:01:55]} 40. Kb3 {[%emt 0:06:02]} Rb4+ {[%emt 0:01:06]} 41. Kc3 {[%emt 0:30:19]} Ra4 {[%emt 0:30:07]} 42. Kc2 {[%emt 0:04:39]} Bd6 {[%emt 0:01:26]} 43. Kb3 {[%emt 0:00:07]} Rb4+ {[%emt 0:00:09]} 44. Kc3 {[%emt 0:00:02]} Ra4 {[%emt 0:00:10]} 45. Kd3 {[%emt 0:00:03]} Bc7 {[%emt 0:02:45]} 46. Kc2 {[%emt 0:07:28]} Bd6 {[%emt 0:00:19]} 47. Kc3 {[%emt 0:00:05]} Bf8 {[%emt 0:00:26]} 48. f4 {[%emt 0:00:00]} f5 {[%emt 0:00:00]} 49. gxf5 {[%emt 0:00:00]} gxf5 {[%emt 0:00:00]} 50. Re5 {[%emt 0:00:00]} Bg7 {[%emt 0:00:00]} 51. Rd5 {[%emt 0:00:00]} Ke6 {[%emt 0:00:00]} 52. Rd8 {[%emt 0:00:00]} Ke7 {[%emt 0:00:00]} 53. Rd5 {[%emt 0:00:00]} Ke6 {[%emt 0:00:00]} 54. Rd8 {[%emt 0:00:00]} Ke7 {[%emt 0:00:00]} 55. Rd5 {[%emt 0:00:00]} 1/2-1/2

[Event "FIDE CB Open 2022"]
[Site "Ceske Budejovice"]
[Date "2022.07.07"]
[Round "7.2"]
[White "Hrbek, Stepan"]
[Black "Toman, Ondrej"]
[Result "1/2-1/2"]
[ECO "B12"]
[WhiteElo "2272"]
[BlackElo "2276"]
[Annotator "RC"]
[PlyCount "76"]
[EventDate "2022.07.01"]
[EventType "swiss"]
[EventCountry "CZE"]
[SourceTitle "playchess.com"]
[Source "ChessBase"]
[SourceQuality "1"]
[TimeControl "40/5400+30:1800+30"]

1. e4 {[%emt 0:00:07]} c6 {[%emt 0:00:03]} 2. d4 {[%emt 0:00:07]} d5 {[%emt 0:00:04]} 3. e5 {[%emt 0:00:07]} Bf5 {[%emt 0:00:23]} 4. h4 {[%emt 0:00:19]} h5 {[%emt 0:00:21]} 5. c4 {[%emt 0:00:24]} e6 {[%emt 0:01:09]} 6. Nc3 {[%emt 0:00:20]} Ne7 {[%emt 0:00:56]} 7. Nge2 {[%emt 0:00:38]} Nd7 {[%emt 0:02:44]} 8. Ng3 {[%emt 0:00:27]} Bg6 {[%emt 0:01:41]} 9. Be3 {[%emt 0:00:09]} dxc4 {[%emt 0:03:56]} 10. Bxc4 {[%emt 0:00:16]} Nb6 {[%emt 0:00:14]} 11. Be2 {[%emt 0:05:46]} Ned5 {[%emt 0:04:55]} 12. Nxh5 {[%emt 0:21:53]} Bxh5 {[%emt 0:06:25]} 13. Bxh5 {[%emt 0:02:00]} Nxe3 {[%emt 0:01:27]} 14. fxe3 {[%emt 0:00:35]} g6 {[%emt 0:00:16]} 15. Bf3 {[%emt 0:01:19]} Rxh4 {[%emt 0:00:23]} 16. Kf2 {[%emt 0:09:21]} Be7 {[%emt 0:20:02]} 17. g3 {[%emt 0:06:40]} Rxh1 {[%emt 0:00:11]} 18. Qxh1 {[%emt 0:00:06]} Nd5 {[%emt 0:03:18]} 19. Qh8+ {[%emt 0:12:36]} Kd7 {[%emt 0:02:18]} 20. Qxd8+ {[%emt 0:00:56]} Rxd8 {[%emt 0:00:46]} 21. Rh1 {[%emt 0:05:14]} Bg5 {[%emt 0:11:40]} 22. Nxd5 {[%emt 0:01:38]} cxd5 {[%emt 0:01:47]} 23. Ke2 {[%emt 0:00:14]} Rc8 {[%emt 0:02:01]} 24. Kd3 {[%emt 0:00:20]} b6 {[%emt 0:02:49]} 25. e4 {[%emt 0:03:15]} dxe4+ {[%emt 0:01:33]} 26. Bxe4 {[%emt 0:00:08]} Rc1 {[%emt 0:06:04]} 27. Rxc1 {[%emt 0:07:44]} Bxc1 {[%emt 0:00:02]} 28. b3 {[%emt 0:00:36]} Ke7 {[%emt 0:01:36]} 29. Bc6 {[%emt 0:01:20]} Bb2 {[%emt 0:00:52]} 30. g4 {[%emt 0:02:34]} a5 {[%emt 0:00:26]} 31. a4 {[%emt 0:00:12]} Ba1 {[%emt 0:00:26]} 32. Ke4 {[%emt 0:00:23]} Bc3 {[%emt 0:00:27]} 33. d5 {[%emt 0:00:44]} exd5+ {[%emt 0:00:47]} 34. Bxd5 {[%emt 0:00:08]} Bb2 {[%emt 0:00:25]} 35. Bc4 {[%emt 0:00:11]} Ba3 {[%emt 0:00:29]} 36. Bd5 {[%emt 0:00:18]} Bb2 {[%emt 0:00:07]} 37. Bc4 {[%emt 0:00:06]} Ba3 {[%emt 0:00:04]} 38. Bd5 {[%emt 0:00:05]} Bb2 {[%emt 0:00:06]} 1/2-1/2

[Event "FIDE CB Open 2022"]
[Site "Ceske Budejovice"]
[Date "2022.07.07"]
[Round "7.3"]
[White "Havelka, Josef"]
[Black "Zima, Jan"]
[Result "1-0"]
[ECO "B53"]
[WhiteElo "2396"]
[BlackElo "2134"]
[Annotator "RC"]
[PlyCount "117"]
[EventDate "2022.07.01"]
[EventType "swiss"]
[EventCountry "CZE"]
[SourceTitle "playchess.com"]
[Source "ChessBase"]
[SourceQuality "1"]
[TimeControl "40/5400+30:1800+30"]

1. e4 {[%emt 0:00:07]} c5 {[%emt 0:00:07]} 2. Nf3 {[%emt 0:00:18]} d6 {[%emt 0:00:09]} 3. d4 {[%emt 0:00:07]} cxd4 {[%emt 0:00:03]} 4. Qxd4 {[%emt 0:00:06]} Nc6 {[%emt 0:00:06]} 5. Bb5 {[%emt 0:00:23]} Bd7 {[%emt 0:00:06]} 6. Qd3 {[%emt 0:00:44]} Nf6 {[%emt 0:02:42]} 7. c4 {[%emt 0:05:28]} g6 {[%emt 0:00:43]} 8. Nc3 {[%emt 0:01:02]} Bg7 {[%emt 0:00:10]} 9. h3 {[%emt 0:01:04]} O-O {[%emt 0:02:16]} 10. O-O {[%emt 0:09:33]} a6 {[%emt 0:00:47]} 11. Bxc6 {[%emt 0:00:07]} Bxc6 {[%emt 0:00:04]} 12. Nd4 {[%emt 0:00:15]} Nd7 {[%emt 0:06:21]} 13. Be3 {[%emt 0:00:35]} Qa5 {[%emt 0:07:05]} 14. Rac1 {[%emt 0:06:18]} Rfc8 {[%emt 0:03:27]} 15. b3 {[%emt 0:13:41]} h6 {[%emt 0:31:46]} 16. Rfd1 {[%emt 0:08:45]} b5 {[%emt 0:14:14]} 17. Nxc6 {[%emt 0:15:22]} Rxc6 {[%emt 0:00:16]} 18. Nd5 {[%emt 0:00:13]} Re8 {[%emt 0:11:31]} 19. cxb5 {[%emt 0:07:14]} Rxc1 {[%emt 0:02:34]} 20. Rxc1 {[%emt 0:00:24]} axb5 {[%emt 0:03:34]} 21. Qc2 {[%emt 0:00:32]} e6 {[%emt 0:02:36]} 22. Nc7 {[%emt 0:15:04]} Rd8 {[%emt 0:05:31]} 23. Qc6 {[%emt 0:06:41]} Qxa2 {[%emt 0:00:33]} 24. Nxb5 {[%emt 0:03:03]} Ne5 {[%emt 0:01:44]} 25. Qc7 {[%emt 0:00:30]} Rf8 {[%emt 0:01:48]} 26. b4 {[%emt 0:01:53]} Nd3 {[%emt 0:01:00]} 27. Rf1 {[%emt 0:02:12]} Nxb4 {[%emt 0:01:34]} 28. Qxd6 {[%emt 0:00:07]} Qc4 {[%emt 0:00:33]} 29. Nd4 {[%emt 0:02:33]} e5 {[%emt 0:00:40]} 30. Nf3 {[%emt 0:00:23]} Nd3 {[%emt 0:00:51]} 31. Nd2 {[%emt 0:00:31]} Qc2 {[%emt 0:00:24]} 32. Rb1 {[%emt 0:00:19]} Nc1 {[%emt 0:00:42]} 33. Kh2 {[%emt 0:00:24]} Ne2 {[%emt 0:00:16]} 34. Qa6 {[%emt 0:00:40]} Nd4 {[%emt 0:00:41]} 35. Rb7 {[%emt 0:00:34]} Qd1 {[%emt 0:00:26]} 36. Qc4 {[%emt 0:00:31]} Qc2 {[%emt 0:00:23]} 37. Qd5 {[%emt 0:00:34]} Qc8 {[%emt 0:00:32]} 38. Rd7 {[%emt 0:00:22]} Qe8 {[%emt 0:00:40]} 39. Nc4 {[%emt 0:00:22]} Qe6 {[%emt 0:00:23]} 40. Kg1 {[%emt 0:00:53]} Rc8 {[%emt 0:00:39]} 41. Na5 {[%emt 0:08:14]} Ne2+ {[%emt 0:12:55]} 42. Kh2 {[%emt 0:01:59]} Nf4 {[%emt 0:01:47]} 43. Qd2 {[%emt 0:08:14]} Bf6 {[%emt 0:02:48]} 44. Rd6 {[%emt 0:05:16]} Qe7 {[%emt 0:00:06]} 45. g3 {[%emt 0:01:33]} Ne6 {[%emt 0:03:36]} 46. Nc6 {[%emt 0:01:22]} Qb7 {[%emt 0:03:40]} 47. Qd5 {[%emt 0:01:19]} Kg7 {[%emt 0:06:04]} 48. Na7 {[%emt 0:00:55]} Rc7 {[%emt 0:01:36]} 49. Nb5 {[%emt 0:03:03]} Re7 {[%emt 0:00:13]} 50. Nc3 {[%emt 0:00:43]} Rc7 {[%emt 0:01:19]} 51. Qd2 {[%emt 0:01:14]} Bg5 {[%emt 0:01:17]} 52. Nd5 {[%emt 0:01:53]} Rc4 {[%emt 0:00:17]} 53. h4 {[%emt 0:00:34]} Bxe3 {[%emt 0:00:05]} 54. Qxe3 {[%emt 0:00:11]} Rc6 {[%emt 0:01:08]} 55. Qa3 {[%emt 0:00:36]} Rxd6 {[%emt 0:00:37]} 56. Qxd6 {[%emt 0:00:03]} Qb2 {[%emt 0:00:15]} 57. Kg2 {[%emt 0:01:29]} Qd4 {[%emt 0:00:32]} 58. f3 {[%emt 0:00:19]} Nf8 {[%emt 0:00:47]} 59. Qf6+ {[%emt 0:00:20]} 1-0

[Event "FIDE CB Open 2022"]
[Site "Ceske Budejovice"]
[Date "2022.07.07"]
[Round "7.4"]
[White "Velicka, Petr"]
[Black "Palchuk, Andrii"]
[Result "1/2-1/2"]
[ECO "E04"]
[WhiteElo "2384"]
[BlackElo "2248"]
[Annotator "RC"]
[PlyCount "84"]
[EventDate "2022.07.01"]
[EventType "swiss"]
[EventCountry "CZE"]
[SourceTitle "playchess.com"]
[Source "ChessBase"]
[SourceQuality "1"]
[TimeControl "40/5400+30:1800+30"]

1. Nf3 {[%emt 0:00:15]} Nf6 {[%emt 0:01:24]} 2. c4 {[%emt 0:00:05]} e6 {[%emt 0:03:07]} 3. g3 {[%emt 0:00:07]} d5 {[%emt 0:00:02]} 4. d4 {[%emt 0:00:08]} dxc4 {[%emt 0:00:55]} 5. Bg2 {[%emt 0:00:27]} Bd7 {[%emt 0:00:59]} 6. Ne5 {[%emt 0:00:39]} Bc6 {[%emt 0:00:09]} 7. Nxc6 {[%emt 0:00:18]} Nxc6 {[%emt 0:00:07]} 8. Qa4 {[%emt 0:00:30]} Qd7 {[%emt 0:00:13]} 9. Qxc4 {[%emt 0:04:30]} Nxd4 {[%emt 0:06:43]} 10. Bxb7 {[%emt 0:04:48]} Rb8 {[%emt 0:00:15]} 11. Bf3 {[%emt 0:03:55]} Bb4+ {[%emt 0:09:59]} 12. Kf1 {[%emt 0:00:27]} Nxf3 {[%emt 0:03:33]} 13. exf3 {[%emt 0:00:08]} O-O {[%emt 0:00:13]} 14. Nc3 {[%emt 0:03:49]} Rfd8 {[%emt 0:21:24]} 15. Kg2 {[%emt 0:02:02]} Nd5 {[%emt 0:02:41]} 16. Ne2 {[%emt 0:08:44]} Be7 {[%emt 0:03:16]} 17. Rb1 {[%emt 0:05:53]} Bf6 {[%emt 0:06:33]} 18. b3 {[%emt 0:01:32]} Rb6 {[%emt 0:10:42]} 19. Bb2 {[%emt 0:02:32]} Rc6 {[%emt 0:00:14]} 20. Qe4 {[%emt 0:01:46]} Ra6 {[%emt 0:05:07]} 21. Bxf6 {[%emt 0:03:01]} Nxf6 {[%emt 0:00:04]} 22. Qc2 {[%emt 0:00:06]} Rc6 {[%emt 0:00:05]} 23. Qb2 {[%emt 0:00:16]} Qd2 {[%emt 0:07:37]} 24. Qxd2 {[%emt 0:00:16]} Rxd2 {[%emt 0:00:08]} 25. Rhd1 {[%emt 0:00:11]} Rcc2 {[%emt 0:00:20]} 26. Rxd2 {[%emt 0:00:06]} Rxd2 {[%emt 0:00:03]} 27. Nc3 {[%emt 0:00:09]} Rc2 {[%emt 0:01:04]} 28. Rd1 {[%emt 0:00:46]} Kf8 {[%emt 0:03:47]} 29. Rd3 {[%emt 0:00:16]} c6 {[%emt 0:03:05]} 30. b4 {[%emt 0:05:05]} Ke7 {[%emt 0:02:12]} 31. a3 {[%emt 0:00:46]} Nd7 {[%emt 0:00:31]} 32. f4 {[%emt 0:06:03]} f5 {[%emt 0:02:51]} 33. Nd1 {[%emt 0:05:53]} c5 {[%emt 0:01:39]} 34. bxc5 {[%emt 0:09:11]} Nxc5 {[%emt 0:00:04]} 35. Rc3 {[%emt 0:00:42]} Rd2 {[%emt 0:03:09]} 36. Rxc5 {[%emt 0:00:55]} Rxd1 {[%emt 0:00:03]} 37. Ra5 {[%emt 0:00:56]} Rd7 {[%emt 0:00:03]} 38. Ra6 {[%emt 0:00:13]} Kf6 {[%emt 0:00:57]} 39. Kf3 {[%emt 0:02:10]} Rb7 {[%emt 0:01:55]} 40. h4 {[%emt 0:01:31]} h5 {[%emt 0:01:42]} 41. Ke3 {[%emt 0:31:33]} Rd7 {[%emt 0:02:38]} 42. a4 {[%emt 0:00:00]} Kf7 {[%emt 0:01:23]} 1/2-1/2

[Event "FIDE CB Open 2022"]
[Site "Ceske Budejovice"]
[Date "2022.07.07"]
[Round "7.5"]
[White "Zeman, Matyas"]
[Black "Librelato, Kathie Goulart"]
[Result "1-0"]
[ECO "C67"]
[WhiteElo "2262"]
[BlackElo "2255"]
[Annotator "RC"]
[PlyCount "97"]
[EventDate "2022.07.01"]
[EventType "swiss"]
[EventCountry "CZE"]
[SourceTitle "playchess.com"]
[Source "ChessBase"]
[SourceQuality "1"]
[TimeControl "40/5400+30:1800+30"]

1. e4 {[%emt 0:00:09]} e5 {[%emt 0:00:09]} 2. Nf3 {[%emt 0:00:07]} Nc6 {[%emt 0:00:05]} 3. Bb5 {[%emt 0:00:06]} Nf6 {[%emt 0:00:07]} 4. O-O {[%emt 0:00:55]} Nxe4 {[%emt 0:00:05]} 5. Re1 {[%emt 0:16:04]} Nd6 {[%emt 0:00:08]} 6. Nxe5 {[%emt 0:00:07]} Nxe5 {[%emt 0:00:22]} 7. Rxe5+ {[%emt 0:00:04]} Be7 {[%emt 0:00:06]} 8. Bf1 {[%emt 0:00:03]} O-O {[%emt 0:00:09]} 9. d4 {[%emt 0:00:03]} Bf6 {[%emt 0:03:21]} 10. Re2 {[%emt 0:01:13]} Nf5 {[%emt 0:03:21]} 11. c3 {[%emt 0:00:22]} d5 {[%emt 0:00:05]} 12. Bf4 {[%emt 0:02:58]} Nd6 {[%emt 0:02:15]} 13. Nd2 {[%emt 0:03:43]} Bg4 {[%emt 0:05:51]} 14. f3 {[%emt 0:00:12]} Bf5 {[%emt 0:00:04]} 15. Qb3 {[%emt 0:02:00]} c6 {[%emt 0:00:33]} 16. Qb4 {[%emt 0:08:04]} Nb5 {[%emt 0:07:48]} 17. a4 {[%emt 0:01:40]} a5 {[%emt 0:00:05]} 18. Qb3 {[%emt 0:00:05]} Nd6 {[%emt 0:00:23]} 19. Qa3 {[%emt 0:00:09]} Ne8 {[%emt 0:07:18]} 20. Rae1 {[%emt 0:02:15]} Be6 {[%emt 0:14:03]} 21. Re3 {[%emt 0:08:37]} Bg5 {[%emt 0:09:28]} 22. Bxg5 {[%emt 0:02:15]} Qxg5 {[%emt 0:00:06]} 23. Bd3 {[%emt 0:00:26]} Rd8 {[%emt 0:01:12]} 24. f4 {[%emt 0:16:09]} Qh5 {[%emt 0:11:35]} 25. Re5 {[%emt 0:02:37]} Qh6 {[%emt 0:00:40]} 26. Nf3 {[%emt 0:00:44]} Nf6 {[%emt 0:06:08]} 27. f5 {[%emt 0:00:51]} Bd7 {[%emt 0:01:36]} 28. h3 {[%emt 0:01:01]} Ne4 {[%emt 0:00:40]} 29. Bxe4 {[%emt 0:02:53]} dxe4 {[%emt 0:00:05]} 30. R1xe4 {[%emt 0:00:07]} Qc1+ {[%emt 0:06:46]} 31. Kh2 {[%emt 0:13:06]} Qc2 {[%emt 0:01:03]} 32. Qe7 {[%emt 0:02:57]} h6 {[%emt 0:03:43]} 33. Re2 {[%emt 0:06:14]} Qxa4 {[%emt 0:03:20]} 34. f6 {[%emt 0:01:16]} Rfe8 {[%emt 0:08:10]} 35. Qc5 {[%emt 0:01:05]} Be6 {[%emt 0:00:06]} 36. fxg7 {[%emt 0:00:28]} Qd1 {[%emt 0:01:35]} 37. Qxa5 {[%emt 0:03:03]} Rd5 {[%emt 0:00:05]} 38. Qc7 {[%emt 0:03:31]} Rxe5 {[%emt 0:00:22]} 39. Rxe5 {[%emt 0:00:10]} Qb3 {[%emt 0:00:24]} 40. Re2 {[%emt 0:00:55]} Ra8 {[%emt 0:00:29]} 41. Qe5 {[%emt 0:31:35]} Qd1 {[%emt 0:07:31]} 42. Re3 {[%emt 0:00:00]} Qc1 {[%emt 0:02:00]} 43. Qf4 {[%emt 0:00:00]} Kxg7 {[%emt 0:01:24]} 44. Ne5 {[%emt 0:00:00]} Ra1 {[%emt 0:02:15]} 45. Ng4 {[%emt 0:00:00]} Qg1+ {[%emt 0:09:35]} 46. Kg3 {[%emt 0:00:00]} Bxg4 {[%emt 0:00:04]} 47. Qxg4+ {[%emt 0:00:00]} Kf8 {[%emt 0:00:05]} 48. Qf4 {[%emt 0:00:00]} Kg7 {[%emt 0:00:16]} 49. Re7 {[%emt 0:00:00]} 1-0

[Event "FIDE CB Open 2022"]
[Site "Ceske Budejovice"]
[Date "2022.07.07"]
[Round "7.6"]
[White "Domalchuk-Jonasson, Aleksandr"]
[Black "Maryasin, Boris"]
[Result "1/2-1/2"]
[ECO "E04"]
[WhiteElo "2244"]
[BlackElo "2260"]
[Annotator "RC"]
[PlyCount "99"]
[EventDate "2022.07.01"]
[EventType "swiss"]
[EventCountry "CZE"]
[SourceTitle "playchess.com"]
[Source "ChessBase"]
[SourceQuality "1"]
[TimeControl "40/5400+30:1800+30"]

1. d4 {[%emt 0:00:04]} Nf6 {[%emt 0:01:27]} 2. c4 {[%emt 0:00:14]} e6 {[%emt 0:00:14]} 3. Nf3 {[%emt 0:00:25]} d5 {[%emt 0:00:24]} 4. g3 {[%emt 0:00:35]} dxc4 {[%emt 0:01:30]} 5. Bg2 {[%emt 0:05:57]} c5 {[%emt 0:03:15]} 6. O-O {[%emt 0:01:53]} Nc6 {[%emt 0:00:49]} 7. dxc5 {[%emt 0:03:19]} Qxd1 {[%emt 0:00:23]} 8. Rxd1 {[%emt 0:00:06]} Bxc5 {[%emt 0:00:23]} 9. Nbd2 {[%emt 0:00:43]} c3 {[%emt 0:04:22]} 10. bxc3 {[%emt 0:00:25]} O-O {[%emt 0:00:27]} 11. Nb3 {[%emt 0:07:14]} Bb6 {[%emt 0:01:50]} 12. Ba3 {[%emt 0:10:19]} Re8 {[%emt 0:02:21]} 13. c4 {[%emt 0:07:50]} e5 {[%emt 0:01:42]} 14. c5 {[%emt 0:06:13]} Bc7 {[%emt 0:00:20]} 15. Bb2 {[%emt 0:01:49]} Be6 {[%emt 0:04:25]} 16. Ng5 {[%emt 0:10:57]} Bc4 {[%emt 0:00:56]} 17. e3 {[%emt 0:03:24]} Rad8 {[%emt 0:00:37]} 18. Ne4 {[%emt 0:05:08]} Nxe4 {[%emt 0:01:25]} 19. Bxe4 {[%emt 0:00:04]} a5 {[%emt 0:01:39]} 20. Bc3 {[%emt 0:05:47]} a4 {[%emt 0:01:51]} 21. Nd2 {[%emt 0:01:12]} Bd3 {[%emt 0:04:04]} 22. Bxd3 {[%emt 0:06:42]} Rxd3 {[%emt 0:00:13]} 23. Ne4 {[%emt 0:00:30]} Red8 {[%emt 0:01:36]} 24. Rxd3 {[%emt 0:00:43]} Rxd3 {[%emt 0:00:07]} 25. g4 {[%emt 0:00:33]} h5 {[%emt 0:05:20]} 26. h3 {[%emt 0:05:37]} hxg4 {[%emt 0:18:30]} 27. hxg4 {[%emt 0:00:05]} Bb8 {[%emt 0:00:59]} 28. Rb1 {[%emt 0:03:17]} Rd7 {[%emt 0:00:07]} 29. Kf1 {[%emt 0:06:00]} f6 {[%emt 0:00:20]} 30. Ke2 {[%emt 0:00:54]} Kf7 {[%emt 0:00:15]} 31. Bd2 {[%emt 0:01:12]} Ba7 {[%emt 0:07:55]} 32. Nd6+ {[%emt 0:00:51]} Ke6 {[%emt 0:00:17]} 33. Nxb7 {[%emt 0:00:28]} Kd5 {[%emt 0:00:57]} 34. f3 {[%emt 0:03:03]} e4 {[%emt 0:00:13]} 35. f4 {[%emt 0:00:42]} g6 {[%emt 0:02:43]} 36. Bc3 {[%emt 0:00:44]} Rh7 {[%emt 0:02:28]} 37. Be1 {[%emt 0:02:37]} Ke6 {[%emt 0:04:59]} 38. Rd1 {[%emt 0:00:26]} Rc7 {[%emt 0:07:45]} 39. Nd6 {[%emt 0:01:08]} f5 {[%emt 0:06:09]} 40. gxf5+ {[%emt 0:00:34]} gxf5 {[%emt 0:00:03]} 41. Nb5 {[%emt 0:03:26]} Rd7 {[%emt 0:02:13]} 42. Nxa7 {[%emt 0:03:43]} Nxa7 {[%emt 0:00:21]} 43. Rb1 {[%emt 0:03:19]} Nc6 {[%emt 0:01:54]} 44. Bd2 {[%emt 0:12:38]} Kd5 {[%emt 0:01:02]} 45. Rd1 {[%emt 0:00:02]} Kc4 {[%emt 0:00:40]} 46. Rc1+ {[%emt 0:00:24]} Kb5 {[%emt 0:00:29]} 47. Kd1 {[%emt 0:03:27]} Rd5 {[%emt 0:00:49]} 48. Rb1+ {[%emt 0:00:07]} Kxc5 {[%emt 0:00:30]} 49. Kc2 {[%emt 0:00:01]} Rd7 {[%emt 0:01:29]} 50. Bc3 {[%emt 0:03:26]} 1/2-1/2

[Event "FIDE CB Open 2022"]
[Site "Ceske Budejovice"]
[Date "2022.07.07"]
[Round "7.7"]
[White "Valantiejus, Vaidotas"]
[Black "Kratochvil, Vit"]
[Result "1/2-1/2"]
[ECO "B43"]
[WhiteElo "2062"]
[BlackElo "2237"]
[Annotator "RC"]
[PlyCount "83"]
[EventDate "2022.07.01"]
[EventType "swiss"]
[EventCountry "CZE"]
[SourceTitle "playchess.com"]
[Source "ChessBase"]
[SourceQuality "1"]
[TimeControl "40/5400+30:1800+30"]

1. e4 {[%emt 0:00:05]} c5 {[%emt 0:00:34]} 2. Nc3 {[%emt 0:00:19]} a6 {[%emt 0:00:40]} 3. g3 {[%emt 0:00:27]} b5 {[%emt 0:04:08]} 4. Bg2 {[%emt 0:00:14]} Bb7 {[%emt 0:00:11]} 5. Nge2 {[%emt 0:00:26]} e6 {[%emt 0:02:23]} 6. d4 {[%emt 0:01:45]} cxd4 {[%emt 0:12:19]} 7. Nxd4 {[%emt 0:00:29]} Nf6 {[%emt 0:00:49]} 8. a3 {[%emt 0:01:28]} Qc7 {[%emt 0:05:42]} 9. O-O {[%emt 0:01:05]} Nc6 {[%emt 0:05:24]} 10. Re1 {[%emt 0:19:55]} Nxd4 {[%emt 0:05:11]} 11. Qxd4 {[%emt 0:01:54]} Bc5 {[%emt 0:00:09]} 12. Qd1 {[%emt 0:01:00]} h5 {[%emt 0:15:22]} 13. Be3 {[%emt 0:00:54]} Ng4 {[%emt 0:10:39]} 14. Bxc5 {[%emt 0:00:21]} Qxc5 {[%emt 0:00:05]} 15. Qe2 {[%emt 0:06:16]} Ne5 {[%emt 0:02:38]} 16. Nd1 {[%emt 0:05:57]} h4 {[%emt 0:03:46]} 17. Ne3 {[%emt 0:01:03]} hxg3 {[%emt 0:07:10]} 18. hxg3 {[%emt 0:00:13]} Rc8 {[%emt 0:00:31]} 19. c3 {[%emt 0:01:15]} Ke7 {[%emt 0:12:20]} 20. Rad1 {[%emt 0:02:13]} Rh6 {[%emt 0:03:33]} 21. Rd4 {[%emt 0:03:54]} Rch8 {[%emt 0:06:36]} 22. Red1 {[%emt 0:00:53]} Bc6 {[%emt 0:00:34]} 23. f4 {[%emt 0:13:42]} Nc4 {[%emt 0:00:29]} 24. b4 {[%emt 0:01:54]} Qh5 {[%emt 0:00:30]} 25. Qxh5 {[%emt 0:00:25]} Rxh5 {[%emt 0:00:01]} 26. Nxc4 {[%emt 0:00:15]} bxc4 {[%emt 0:00:04]} 27. Rxc4 {[%emt 0:00:33]} f5 {[%emt 0:01:12]} 28. Re1 {[%emt 0:09:44]} fxe4 {[%emt 0:00:47]} 29. Bxe4 {[%emt 0:00:24]} Bxe4 {[%emt 0:00:38]} 30. Rcxe4 {[%emt 0:00:08]} Rh1+ {[%emt 0:00:28]} 31. Kg2 {[%emt 0:00:38]} R8h2+ {[%emt 0:00:27]} 32. Kf3 {[%emt 0:00:06]} Rxe1 {[%emt 0:00:28]} 33. Rxe1 {[%emt 0:00:02]} Ra2 {[%emt 0:00:08]} 34. f5 {[%emt 0:05:01]} Rxa3 {[%emt 0:00:20]} 35. Re3 {[%emt 0:00:07]} a5 {[%emt 0:01:07]} 36. bxa5 {[%emt 0:00:27]} Rxa5 {[%emt 0:00:04]} 37. fxe6 {[%emt 0:00:04]} dxe6 {[%emt 0:00:04]} 38. Ke4 {[%emt 0:02:41]} Ra4+ {[%emt 0:01:13]} 39. Ke5 {[%emt 0:01:03]} Rc4 {[%emt 0:00:29]} 40. Rd3 {[%emt 0:00:37]} Rg4 {[%emt 0:00:24]} 41. Rf3 {[%emt 0:30:37]} Rc4 {[%emt 0:03:07]} 42. Rd3 {[%emt 0:00:00]} 1/2-1/2